[Event "Titled Tuesday Blitz July 4 Early 2023"]
[White "Hambleton, Aman"]
[Black "Burmakin, Vladimir"]
[WhiteFideId "2606577"]
[BlackFideId "4105109"]
[WhiteElo "2772"]
[BlackElo "2623"]
[Result "1-0"]
[Round "9"]
[TimeControl "180+2"]
[Date "2023.07.04"]
[WhiteClock "0:00:03"]
[BlackClock "0:01:21"]
[Board "42"]

1. d4 {[%clk 0:03:00]}  d5 {[%clk 0:03:00]} 2. Bf4 {[%clk 0:03:00]}  e6 {[%clk 0:02:59]} 3. e3 {[%clk 0:03:00]}  c5 {[%clk 0:02:59]} 4. c3 {[%clk 0:03:00]}  Nc6 {[%clk 0:02:58]} 5. Nd2 {[%clk 0:03:00]}  Bd6 {[%clk 0:02:58]} 6. Bxd6 {[%clk 0:02:42]}  Qxd6 {[%clk 0:02:57]} 7. f4 {[%clk 0:02:42]}  Nge7 {[%clk 0:02:51]} 8. Ngf3 {[%clk 0:02:40]}  O-O {[%clk 0:02:49]} 9. Bd3 {[%clk 0:02:39]}  a6 {[%clk 0:02:43]} 10. Bxh7+ {[%clk 0:01:43]}  Kxh7 {[%clk 0:02:44]} 11. Ng5+ {[%clk 0:01:44]}  Kg6 {[%clk 0:02:44]} 12. Qg4 {[%clk 0:01:26]}  f5 {[%clk 0:02:43]} 13. Qg3 {[%clk 0:00:43]}  Kf6 {[%clk 0:02:42]} 14. Ndf3 {[%clk 0:00:34]}  cxd4 {[%clk 0:02:23]} 15. Qh4 {[%clk 0:00:17]}  Kg6 {[%clk 0:02:19]} 16. Qg3 {[%clk 0:00:06]}  Kf6 {[%clk 0:02:18]} 17. exd4 {[%clk 0:00:05]}  Ng6 {[%clk 0:02:06]} 18. Ne5 {[%clk 0:00:05]}  Ncxe5 {[%clk 0:02:05]} 19. fxe5+ {[%clk 0:00:03]}  Nxe5 {[%clk 0:02:05]} 20. Nh7+ {[%clk 0:00:02]}  Kf7 {[%clk 0:02:03]} 21. dxe5 {[%clk 0:00:02]}  Qb6 {[%clk 0:01:59]} 22. Nxf8 {[%clk 0:00:02]}  Qxb2 {[%clk 0:01:58]} 23. O-O {[%clk 0:00:01]}  Kxf8 {[%clk 0:01:58]} 24. Rac1 {[%clk 0:00:01]}  Bd7 {[%clk 0:01:49]} 25. h4 {[%clk 0:00:01]}  Qd2 {[%clk 0:01:46]} 26. Rcd1 {[%clk 0:00:01]}  Qh6 {[%clk 0:01:45]} 27. Rd4 {[%clk 0:00:01]}  Bc6 {[%clk 0:01:44]} 28. Rff4 {[%clk 0:00:01]}  Kg8 {[%clk 0:01:43]} 29. a4 {[%clk 0:00:01]}  b5 {[%clk 0:01:43]} 30. a5 {[%clk 0:00:01]}  Rc8 {[%clk 0:01:41]} 31. Rf3 {[%clk 0:00:01]}  Be8 {[%clk 0:01:41]} 32. Qg5 {[%clk 0:00:01]}  Qxg5 {[%clk 0:01:40]} 33. hxg5 {[%clk 0:00:02]}  Bg6 {[%clk 0:01:39]} 34. Kf2 {[%clk 0:00:02]}  Kf7 {[%clk 0:01:39]} 35. Ke1 {[%clk 0:00:02]}  Rh8 {[%clk 0:01:37]} 36. Rh3 {[%clk 0:00:02]}  Rc8 {[%clk 0:01:36]} 37. Kd2 {[%clk 0:00:03]}  Rc7 {[%clk 0:01:35]} 38. Rh8 {[%clk 0:00:03]}  Rc6 {[%clk 0:01:34]} 39. Ra8 {[%clk 0:00:02]}  Rc7 {[%clk 0:01:30]} 40. g3 {[%clk 0:00:02]}  b4 {[%clk 0:01:27]} 41. Rxb4 {[%clk 0:00:02]}  f4 {[%clk 0:01:26]} 42. Rxf4+ {[%clk 0:00:02]}  Ke7 {[%clk 0:01:26]} 43. Rb8 {[%clk 0:00:02]}  Bf5 {[%clk 0:01:26]} 44. Rfb4 {[%clk 0:00:02]}  Rc5 {[%clk 0:01:23]} 45. R8b7+ {[%clk 0:00:02]}  Kd8 {[%clk 0:01:23]} 46. Rxg7 {[%clk 0:00:02]}  Rc8 {[%clk 0:01:21]} 47. Rbb7 {[%clk 0:00:02]}  d4 {[%clk 0:01:21]} 48. Rg8# {[%clk 0:00:03]} 1-0


[Site "https://www.chess.com"]

[Event "Titled Tuesday Blitz July 4 Early 2023"]
[White "Tologon tegin, Semetei"]
[Black "Dvirnyy, Danyyil"]
[WhiteFideId "13800574"]
[BlackFideId "817570"]
[WhiteElo "2571"]
[BlackElo "2753"]
[Result "0-1"]
[Round "9"]
[TimeControl "180+2"]
[Date "2023.07.04"]
[WhiteClock "0:00:00"]
[BlackClock "0:00:18"]
[Board "44"]

1. b3 {[%clk 0:02:44]}  c5 {[%clk 0:00:10]} 2. Bb2 {[%clk 0:02:45]}  Nc6 {[%clk 0:00:10]} 3. e3 {[%clk 0:02:39]}  Nf6 {[%clk 0:00:10]} 4. Nf3 {[%clk 0:02:34]}  g6 {[%clk 0:00:09]} 5. c4 {[%clk 0:02:31]}  Bg7 {[%clk 0:00:07]} 6. d4 {[%clk 0:02:31]}  cxd4 {[%clk 0:00:05]} 7. Nxd4 {[%clk 0:02:31]}  O-O {[%clk 0:00:06]} 8. Be2 {[%clk 0:02:30]}  b6 {[%clk 0:00:06]} 9. O-O {[%clk 0:02:27]}  Bb7 {[%clk 0:00:06]} 10. Nc3 {[%clk 0:02:21]}  Nxd4 {[%clk 0:00:05]} 11. Qxd4 {[%clk 0:02:08]}  Ne4 {[%clk 0:00:05]} 12. Qd3 {[%clk 0:02:02]}  Nxc3 {[%clk 0:00:06]} 13. Bxc3 {[%clk 0:02:02]}  Bxc3 {[%clk 0:00:07]} 14. Qxc3 {[%clk 0:02:02]}  d6 {[%clk 0:00:07]} 15. h4 {[%clk 0:01:58]}  h5 {[%clk 0:00:07]} 16. Rad1 {[%clk 0:01:52]}  Rc8 {[%clk 0:00:08]} 17. Qd4 {[%clk 0:01:48]}  Rc5 {[%clk 0:00:08]} 18. Qf4 {[%clk 0:01:47]}  Kg7 {[%clk 0:00:07]} 19. Bf3 {[%clk 0:01:36]}  Bxf3 {[%clk 0:00:06]} 20. Qxf3 {[%clk 0:01:37]}  Qc8 {[%clk 0:00:07]} 21. Rd4 {[%clk 0:01:35]}  Qe6 {[%clk 0:00:05]} 22. Rfd1 {[%clk 0:01:23]}  Rfc8 {[%clk 0:00:05]} 23. g4 {[%clk 0:01:21]}  hxg4 {[%clk 0:00:05]} 24. Rxg4 {[%clk 0:01:22]}  b5 {[%clk 0:00:05]} 25. cxb5 {[%clk 0:01:19]}  Rxb5 {[%clk 0:00:06]} 26. Kg2 {[%clk 0:01:12]}  Rc2 {[%clk 0:00:06]} 27. a4 {[%clk 0:01:07]}  Rf5 {[%clk 0:00:06]} 28. Rf4 {[%clk 0:01:05]}  Rxf4 {[%clk 0:00:06]} 29. Qxf4 {[%clk 0:01:05]}  Qxb3 {[%clk 0:00:07]} 30. Qd4+ {[%clk 0:00:51]}  f6 {[%clk 0:00:07]} 31. h5 {[%clk 0:00:48]}  Rc4 {[%clk 0:00:07]} 32. Qd5 {[%clk 0:00:35]}  Rg4+ {[%clk 0:00:07]} 33. Kf3 {[%clk 0:00:36]}  Qxd5+ {[%clk 0:00:08]} 34. Rxd5 {[%clk 0:00:36]}  Rxa4 {[%clk 0:00:09]} 35. hxg6 {[%clk 0:00:35]}  Kxg6 {[%clk 0:00:10]} 36. Rb5 {[%clk 0:00:35]}  Kf7 {[%clk 0:00:10]} 37. e4 {[%clk 0:00:35]}  Ke6 {[%clk 0:00:11]} 38. Ke3 {[%clk 0:00:34]}  Ra3+ {[%clk 0:00:11]} 39. Kf4 {[%clk 0:00:33]}  Ra2 {[%clk 0:00:12]} 40. f3 {[%clk 0:00:34]}  a5 {[%clk 0:00:12]} 41. Rb7 {[%clk 0:00:34]}  a4 {[%clk 0:00:13]} 42. Ra7 {[%clk 0:00:34]}  a3 {[%clk 0:00:13]} 43. Kg3 {[%clk 0:00:30]}  Ra1 {[%clk 0:00:14]} 44. Kg2 {[%clk 0:00:30]}  a2 {[%clk 0:00:14]} 45. Ra5 {[%clk 0:00:28]}  Kd7 {[%clk 0:00:14]} 46. Ra7+ {[%clk 0:00:28]}  Kc6 {[%clk 0:00:14]} 47. Ra3 {[%clk 0:00:25]}  e6 {[%clk 0:00:14]} 48. Ra6+ {[%clk 0:00:25]}  Kc5 {[%clk 0:00:14]} 49. Ra5+ {[%clk 0:00:25]}  Kb4 {[%clk 0:00:14]} 50. Ra8 {[%clk 0:00:25]}  d5 {[%clk 0:00:15]} 51. exd5 {[%clk 0:00:25]}  exd5 {[%clk 0:00:15]} 52. Rb8+ {[%clk 0:00:24]}  Kc3 {[%clk 0:00:16]} 53. Rc8+ {[%clk 0:00:24]}  Kd2 {[%clk 0:00:16]} 54. Ra8 {[%clk 0:00:23]}  d4 {[%clk 0:00:17]} 55. Kh2 {[%clk 0:00:20]}  Ke3 {[%clk 0:00:17]} 56. Kg2 {[%clk 0:00:20]}  d3 {[%clk 0:00:17]} 57. Re8+ {[%clk 0:00:20]}  Kf4 {[%clk 0:00:18]} 58. Re4+ {[%clk 0:00:05]}  Kf5 {[%clk 0:00:17]} 59. Ra4 {[%clk 0:00:05]}  d2 {[%clk 0:00:18]} 60. Ra5+ {[%clk 0:00:00]}  Kg6 {[%clk 0:00:18]} 0-1


[Site "https://www.chess.com"]

[Event "Titled Tuesday Blitz July 4 Early 2023"]
[White "Fantastic_Power"]
[Black "Czopor, Maciej"]
[BlackFideId "21805431"]
[WhiteElo "2552"]
[BlackElo "2707"]
[Result "1-0"]
[Round "9"]
[TimeControl "180+2"]
[Date "2023.07.04"]
[WhiteClock "0:00:12"]
[BlackClock "0:00:13"]
[Board "46"]

1. e4 {[%clk 0:03:00]}  g6 {[%clk 0:02:54]} 2. d4 {[%clk 0:03:00]}  c6 {[%clk 0:02:55]} 3. Nc3 {[%clk 0:03:00]}  Bg7 {[%clk 0:02:56]} 4. Nf3 {[%clk 0:02:59]}  d5 {[%clk 0:02:56]} 5. h3 {[%clk 0:02:59]}  dxe4 {[%clk 0:02:56]} 6. Nxe4 {[%clk 0:03:00]}  Nf6 {[%clk 0:02:57]} 7. Nxf6+ {[%clk 0:03:01]}  exf6 {[%clk 0:02:58]} 8. Bc4 {[%clk 0:03:00]}  O-O {[%clk 0:02:59]} 9. O-O {[%clk 0:03:00]}  Na6 {[%clk 0:02:59]} 10. c3 {[%clk 0:02:58]}  Nc7 {[%clk 0:02:58]} 11. Bf4 {[%clk 0:02:55]}  Ne6 {[%clk 0:02:57]} 12. Bh2 {[%clk 0:02:52]}  f5 {[%clk 0:02:56]} 13. Re1 {[%clk 0:02:51]}  Bd7 {[%clk 0:02:44]} 14. Ne5 {[%clk 0:02:44]}  Re8 {[%clk 0:02:40]} 15. Qb3 {[%clk 0:02:39]}  b5 {[%clk 0:02:32]} 16. Be2 {[%clk 0:02:30]}  Bxe5 {[%clk 0:02:13]} 17. Bxe5 {[%clk 0:02:31]}  Nc5 {[%clk 0:02:13]} 18. Qc2 {[%clk 0:02:27]}  Ne4 {[%clk 0:02:13]} 19. Bf3 {[%clk 0:02:07]}  Ng5 {[%clk 0:02:11]} 20. Be2 {[%clk 0:02:02]}  Be6 {[%clk 0:02:05]} 21. Qd2 {[%clk 0:01:54]}  Bd5 {[%clk 0:01:50]} 22. Bd3 {[%clk 0:01:39]}  a5 {[%clk 0:01:28]} 23. f3 {[%clk 0:01:26]}  Bxf3 {[%clk 0:00:55]} 24. h4 {[%clk 0:01:25]}  Ne4 {[%clk 0:00:56]} 25. Qh6 {[%clk 0:01:24]}  Rxe5 {[%clk 0:00:57]} 26. gxf3 {[%clk 0:01:01]}  Nc5 {[%clk 0:00:24]} 27. Rxe5 {[%clk 0:00:51]}  Nxd3 {[%clk 0:00:24]} 28. Re2 {[%clk 0:00:11]}  Qd6 {[%clk 0:00:24]} 29. Qe3 {[%clk 0:00:11]}  Nf4 {[%clk 0:00:23]} 30. Rh2 {[%clk 0:00:10]}  Nd5 {[%clk 0:00:22]} 31. Qe5 {[%clk 0:00:09]}  Qxe5 {[%clk 0:00:12]} 32. dxe5 {[%clk 0:00:10]}  Re8 {[%clk 0:00:12]} 33. Re1 {[%clk 0:00:10]}  f4 {[%clk 0:00:13]} 34. Re4 {[%clk 0:00:09]}  Ne3 {[%clk 0:00:09]} 35. Re2 {[%clk 0:00:05]}  Nd5 {[%clk 0:00:05]} 36. Kf2 {[%clk 0:00:04]}  Kg7 {[%clk 0:00:04]} 37. e6 {[%clk 0:00:04]}  f5 {[%clk 0:00:04]} 38. Rd4 {[%clk 0:00:04]}  Kf6 {[%clk 0:00:04]} 39. c4 {[%clk 0:00:04]}  Ne3 {[%clk 0:00:02]} 40. cxb5 {[%clk 0:00:02]}  cxb5 {[%clk 0:00:03]} 41. Rxf4 {[%clk 0:00:02]}  Nc4 {[%clk 0:00:03]} 42. Rd4 {[%clk 0:00:03]}  Ne5 {[%clk 0:00:04]} 43. f4 {[%clk 0:00:03]}  Ng4+ {[%clk 0:00:03]} 44. Kf3 {[%clk 0:00:03]}  Rxe6 {[%clk 0:00:04]} 45. Rxe6+ {[%clk 0:00:03]}  Kxe6 {[%clk 0:00:05]} 46. Rd8 {[%clk 0:00:04]}  h6 {[%clk 0:00:05]} 47. Rb8 {[%clk 0:00:04]}  b4 {[%clk 0:00:06]} 48. Rb6+ {[%clk 0:00:04]}  Kd5 {[%clk 0:00:05]} 49. Rxg6 {[%clk 0:00:04]}  a4 {[%clk 0:00:05]} 50. Rxg4 {[%clk 0:00:03]}  fxg4+ {[%clk 0:00:06]} 51. Kxg4 {[%clk 0:00:04]}  Ke4 {[%clk 0:00:02]} 52. f5 {[%clk 0:00:03]}  Ke5 {[%clk 0:00:03]} 53. b3 {[%clk 0:00:03]}  axb3 {[%clk 0:00:02]} 54. axb3 {[%clk 0:00:02]}  Kf6 {[%clk 0:00:01]} 55. Kf4 {[%clk 0:00:03]}  h5 {[%clk 0:00:02]} 56. Ke4 {[%clk 0:00:03]}  Kf7 {[%clk 0:00:02]} 57. Ke5 {[%clk 0:00:03]}  Ke7 {[%clk 0:00:03]} 58. f6+ {[%clk 0:00:04]}  Kf7 {[%clk 0:00:03]} 59. Kf5 {[%clk 0:00:05]}  Kf8 {[%clk 0:00:04]} 60. Kg6 {[%clk 0:00:06]}  Kg8 {[%clk 0:00:05]} 61. Kxh5 {[%clk 0:00:07]}  Kf7 {[%clk 0:00:06]} 62. Kg5 {[%clk 0:00:08]}  Ke6 {[%clk 0:00:06]} 63. Kg6 {[%clk 0:00:08]}  Ke5 {[%clk 0:00:07]} 64. f7 {[%clk 0:00:08]}  Kd4 {[%clk 0:00:08]} 65. f8=Q {[%clk 0:00:09]}  Kc3 {[%clk 0:00:09]} 66. Qxb4+ {[%clk 0:00:09]}  Kxb4 {[%clk 0:00:09]} 67. h5 {[%clk 0:00:10]}  Kxb3 {[%clk 0:00:10]} 68. h6 {[%clk 0:00:11]}  Kb2 {[%clk 0:00:11]} 69. h7 {[%clk 0:00:12]}  Kc2 {[%clk 0:00:12]} 70. h8=Q {[%clk 0:00:12]}  Kd3 {[%clk 0:00:13]} 1-0


[Site "https://www.chess.com"]

[Event "Titled Tuesday Blitz July 4 Early 2023"]
[White "Papasimakopoulos, Alexandros"]
[Black "Bruedigam, Martin"]
[WhiteFideId "4244125"]
[BlackFideId "24608033"]
[WhiteElo "2690"]
[BlackElo "2557"]
[Result "0-1"]
[Round "9"]
[TimeControl "180+2"]
[Date "2023.07.04"]
[WhiteClock "0:00:17"]
[BlackClock "0:00:18"]
[Board "47"]

1. d4 {[%clk 0:03:00]}  Nf6 {[%clk 0:02:58]} 2. c4 {[%clk 0:02:59]}  e6 {[%clk 0:02:59]} 3. Nc3 {[%clk 0:02:58]}  Bb4 {[%clk 0:02:59]} 4. Qc2 {[%clk 0:02:58]}  d6 {[%clk 0:02:59]} 5. a3 {[%clk 0:02:54]}  Bxc3+ {[%clk 0:02:59]} 6. Qxc3 {[%clk 0:02:55]}  O-O {[%clk 0:02:58]} 7. f3 {[%clk 0:02:55]}  c5 {[%clk 0:02:57]} 8. dxc5 {[%clk 0:02:55]}  dxc5 {[%clk 0:02:57]} 9. Bf4 {[%clk 0:02:55]}  Qe7 {[%clk 0:02:51]} 10. Rd1 {[%clk 0:02:53]}  Rd8 {[%clk 0:02:51]} 11. Rxd8+ {[%clk 0:02:51]}  Qxd8 {[%clk 0:02:52]} 12. e3 {[%clk 0:02:47]}  b6 {[%clk 0:02:49]} 13. Bd3 {[%clk 0:02:47]}  Bb7 {[%clk 0:02:49]} 14. Ne2 {[%clk 0:02:47]}  Nbd7 {[%clk 0:02:47]} 15. O-O {[%clk 0:02:47]}  Qe7 {[%clk 0:02:47]} 16. Ng3 {[%clk 0:02:42]}  h6 {[%clk 0:02:45]} 17. e4 {[%clk 0:02:32]}  e5 {[%clk 0:02:35]} 18. Be3 {[%clk 0:02:32]}  Qe6 {[%clk 0:02:35]} 19. b4 {[%clk 0:02:31]}  Rc8 {[%clk 0:02:26]} 20. Nf5 {[%clk 0:02:19]}  Kh7 {[%clk 0:02:26]} 21. Be2 {[%clk 0:02:17]}  Ng8 {[%clk 0:02:21]} 22. Rd1 {[%clk 0:02:17]}  Nf8 {[%clk 0:01:57]} 23. bxc5 {[%clk 0:02:03]}  bxc5 {[%clk 0:01:55]} 24. Qa5 {[%clk 0:01:58]}  Qb6 {[%clk 0:01:40]} 25. Qc3 {[%clk 0:01:57]}  f6 {[%clk 0:01:32]} 26. Nd6 {[%clk 0:01:54]}  Rd8 {[%clk 0:01:25]} 27. Nb5 {[%clk 0:01:46]}  Rxd1+ {[%clk 0:01:22]} 28. Bxd1 {[%clk 0:01:47]}  Ne6 {[%clk 0:01:21]} 29. a4 {[%clk 0:01:43]}  a6 {[%clk 0:01:04]} 30. Na3 {[%clk 0:01:33]}  Ne7 {[%clk 0:01:04]} 31. a5 {[%clk 0:01:32]}  Qc7 {[%clk 0:01:03]} 32. Nb1 {[%clk 0:01:26]}  Nc6 {[%clk 0:01:01]} 33. Ba4 {[%clk 0:01:14]}  Nxa5 {[%clk 0:00:57]} 34. Nd2 {[%clk 0:01:09]}  Bc6 {[%clk 0:00:55]} 35. Bd1 {[%clk 0:01:08]}  Bd7 {[%clk 0:00:51]} 36. Qa3 {[%clk 0:01:07]}  Qb6 {[%clk 0:00:47]} 37. Kf2 {[%clk 0:01:05]}  Nd4 {[%clk 0:00:44]} 38. f4 {[%clk 0:01:01]}  Nac6 {[%clk 0:00:41]} 39. fxe5 {[%clk 0:01:01]}  fxe5 {[%clk 0:00:37]} 40. h3 {[%clk 0:00:58]}  Be6 {[%clk 0:00:37]} 41. Bg4 {[%clk 0:00:54]}  a5 {[%clk 0:00:32]} 42. Bxe6 {[%clk 0:00:52]}  Nxe6 {[%clk 0:00:32]} 43. Nb3 {[%clk 0:00:50]}  Ncd4 {[%clk 0:00:20]} 44. Nxd4 {[%clk 0:00:46]}  cxd4 {[%clk 0:00:19]} 45. Bd2 {[%clk 0:00:45]}  Qc6 {[%clk 0:00:19]} 46. Qxa5 {[%clk 0:00:30]}  Qxe4 {[%clk 0:00:18]} 47. Qb6 {[%clk 0:00:27]}  Nf4 {[%clk 0:00:17]} 48. Bxf4 {[%clk 0:00:25]}  Qxf4+ {[%clk 0:00:18]} 49. Ke2 {[%clk 0:00:22]}  Qe4+ {[%clk 0:00:18]} 50. Kf2 {[%clk 0:00:21]}  Qe3+ {[%clk 0:00:18]} 51. Kf1 {[%clk 0:00:21]}  e4 {[%clk 0:00:17]} 52. Qe6 {[%clk 0:00:17]}  Qf4+ {[%clk 0:00:17]} 53. Ke1 {[%clk 0:00:16]}  d3 {[%clk 0:00:17]} 54. Qg4 {[%clk 0:00:14]}  Qxg4 {[%clk 0:00:15]} 55. hxg4 {[%clk 0:00:14]}  Kg6 {[%clk 0:00:16]} 56. c5 {[%clk 0:00:15]}  Kf7 {[%clk 0:00:16]} 57. c6 {[%clk 0:00:16]}  Ke7 {[%clk 0:00:17]} 58. Kd2 {[%clk 0:00:16]}  Kd6 {[%clk 0:00:17]} 59. Ke3 {[%clk 0:00:17]}  Kxc6 {[%clk 0:00:17]} 60. Kxe4 {[%clk 0:00:17]}  d2 {[%clk 0:00:18]} 61. Kf5 {[%clk 0:00:18]}  d1=Q {[%clk 0:00:18]} 62. Kg6 {[%clk 0:00:17]}  Qxg4+ {[%clk 0:00:18]} 0-1


[Site "https://www.chess.com"]

[Event "Titled Tuesday Blitz July 4 Early 2023"]
[White "Besedes, Danilo"]
[Black "Fromm, Marius"]
[WhiteFideId "946796"]
[BlackFideId "12993190"]
[WhiteElo "2545"]
[BlackElo "2689"]
[Result "0-1"]
[Round "9"]
[TimeControl "180+2"]
[Date "2023.07.04"]
[WhiteClock "0:01:08"]
[BlackClock "0:01:35"]
[Board "48"]

1. b3 {[%clk 0:02:44]}  e5 {[%clk 0:02:59]} 2. Bb2 {[%clk 0:02:44]}  Nc6 {[%clk 0:03:00]} 3. e3 {[%clk 0:02:45]}  Nf6 {[%clk 0:03:00]} 4. Bb5 {[%clk 0:02:45]}  Bd6 {[%clk 0:03:01]} 5. Ne2 {[%clk 0:02:45]}  O-O {[%clk 0:03:00]} 6. Nbc3 {[%clk 0:02:44]}  Re8 {[%clk 0:02:57]} 7. Ng3 {[%clk 0:02:44]}  Bf8 {[%clk 0:02:53]} 8. O-O {[%clk 0:02:43]}  d5 {[%clk 0:02:43]} 9. Nce2 {[%clk 0:02:40]}  Bd7 {[%clk 0:02:18]} 10. f4 {[%clk 0:02:33]}  e4 {[%clk 0:02:18]} 11. a4 {[%clk 0:02:11]}  a6 {[%clk 0:02:10]} 12. Bxc6 {[%clk 0:02:11]}  Bxc6 {[%clk 0:02:11]} 13. Nf5 {[%clk 0:01:55]}  Bd7 {[%clk 0:02:07]} 14. Neg3 {[%clk 0:01:55]}  c5 {[%clk 0:01:51]} 15. Be5 {[%clk 0:01:50]}  g6 {[%clk 0:01:37]} 16. Nd6 {[%clk 0:01:23]}  Bxd6 {[%clk 0:01:35]} 17. Bxd6 {[%clk 0:01:08]}  Bg4 {[%clk 0:01:35]} 0-1


[Site "https://www.chess.com"]

[Event "Titled Tuesday Blitz July 4 Early 2023"]
[White "Tan, Jun Ying"]
[Black "Streltsov, Alexey"]
[WhiteFideId "5710413"]
[BlackFideId "24104434"]
[WhiteElo "2647"]
[BlackElo "2464"]
[Result "1-0"]
[Round "9"]
[TimeControl "180+2"]
[Date "2023.07.04"]
[WhiteClock "0:00:26"]
[BlackClock "0:01:10"]
[Board "54"]

1. d4 {[%clk 0:03:00]}  d5 {[%clk 0:03:00]} 2. c4 {[%clk 0:03:01]}  e6 {[%clk 0:03:00]} 3. Nc3 {[%clk 0:03:01]}  c6 {[%clk 0:03:01]} 4. Nf3 {[%clk 0:03:00]}  dxc4 {[%clk 0:03:01]} 5. e4 {[%clk 0:03:00]}  b5 {[%clk 0:03:01]} 6. Be2 {[%clk 0:03:01]}  Bb7 {[%clk 0:03:01]} 7. O-O {[%clk 0:03:00]}  Nd7 {[%clk 0:02:59]} 8. Rb1 {[%clk 0:02:46]}  Be7 {[%clk 0:02:56]} 9. b3 {[%clk 0:02:44]}  cxb3 {[%clk 0:02:52]} 10. Qxb3 {[%clk 0:02:44]}  Ngf6 {[%clk 0:02:49]} 11. e5 {[%clk 0:02:43]}  Nd5 {[%clk 0:02:44]} 12. Nxd5 {[%clk 0:02:42]}  exd5 {[%clk 0:02:45]} 13. e6 {[%clk 0:02:26]}  fxe6 {[%clk 0:02:44]} 14. Qe3 {[%clk 0:02:27]}  e5 {[%clk 0:02:28]} 15. dxe5 {[%clk 0:01:32]}  O-O {[%clk 0:02:28]} 16. Nd4 {[%clk 0:01:28]}  Qb8 {[%clk 0:02:13]} 17. f4 {[%clk 0:01:06]}  Bc5 {[%clk 0:02:13]} 18. Bb2 {[%clk 0:00:58]}  Re8 {[%clk 0:02:01]} 19. Qh3 {[%clk 0:00:57]}  Nf8 {[%clk 0:02:00]} 20. Kh1 {[%clk 0:00:55]}  Bc8 {[%clk 0:01:53]} 21. Qh5 {[%clk 0:00:53]}  Qb6 {[%clk 0:01:52]} 22. Qxe8 {[%clk 0:00:48]}  Bxd4 {[%clk 0:01:51]} 23. Bxd4 {[%clk 0:00:46]}  Qxd4 {[%clk 0:01:52]} 24. Qxc6 {[%clk 0:00:42]}  Rb8 {[%clk 0:01:44]} 25. Rxb5 {[%clk 0:00:38]}  Bd7 {[%clk 0:01:28]} 26. Qxd5+ {[%clk 0:00:38]}  Qxd5 {[%clk 0:01:27]} 27. Rxd5 {[%clk 0:00:39]}  Be6 {[%clk 0:01:28]} 28. Rd2 {[%clk 0:00:37]}  g6 {[%clk 0:01:27]} 29. Bf3 {[%clk 0:00:35]}  Nd7 {[%clk 0:01:27]} 30. Bd5 {[%clk 0:00:35]}  Nc5 {[%clk 0:01:27]} 31. Bxe6+ {[%clk 0:00:35]}  Nxe6 {[%clk 0:01:28]} 32. g3 {[%clk 0:00:35]}  a5 {[%clk 0:01:26]} 33. Kg2 {[%clk 0:00:35]}  a4 {[%clk 0:01:26]} 34. Rfd1 {[%clk 0:00:34]}  Kg7 {[%clk 0:01:24]} 35. Rd6 {[%clk 0:00:33]}  Nc5 {[%clk 0:01:22]} 36. R1d2 {[%clk 0:00:31]}  Ne4 {[%clk 0:01:22]} 37. Rd7+ {[%clk 0:00:31]}  Kh6 {[%clk 0:01:23]} 38. Rc2 {[%clk 0:00:31]}  a3 {[%clk 0:01:18]} 39. Rcc7 {[%clk 0:00:28]}  Rb2+ {[%clk 0:01:19]} 40. Kh3 {[%clk 0:00:29]}  g5 {[%clk 0:01:13]} 41. Rc6+ {[%clk 0:00:27]}  Kh5 {[%clk 0:01:10]} 42. Rxh7# {[%clk 0:00:26]} 1-0


[Site "https://www.chess.com"]